[Event "1st 4NCL International Open"]
[Site "Telford"]
[Date "2018.11.04"]
[Round "8"]
[White "Akeya-Price, Robert"]
[Black "Zabrocki, Philip Am"]
[Result "1/2-1/2"]
[ECO "D01"]
[WhiteElo "1773"]
[BlackElo "1952"]
[Annotator "NA"]
[PlyCount "34"]
[EventDate "2018.10.31"]
[EventType "swiss"]
[EventCountry "GBR"]
[SourceTitle "playchess.com"]
[Source "ChessBase"]
[SourceQuality "1"]
[TimeControl "5400+30"]

1. d4 {[%emt 0:00:00]} Nf6 {[%emt 0:00:00]} 2. Nc3 {[%emt 0:00:00]} d5 {[%emt 0:00:54]} 3. Bg5 {[%emt 0:00:00]} Nbd7 {[%emt 0:00:46]} 4. e3 {[%emt 0:01:07]} c6 {[%emt 0:04:11]} 5. Nf3 {[%emt 0:04:31]} g6 {[%emt 0:01:04]} 6. Bd3 {[%emt 0:00:53]} Bg7 {[%emt 0:00:46]} 7. O-O {[%emt 0:02:19]} O-O {[%emt 0:07:34]} 8. e4 {[%emt 0:08:49]} h6 {[%emt 0:08:55]} 9. Bxf6 {[%emt 0:09:19]} Nxf6 {[%emt 0:01:24]} 10. e5 {[%emt 0:00:09]} Ne8 {[%emt 0:01:02]} 11. h3 {[%emt 0:05:37]} Be6 {[%emt 0:14:17]} 12. Ne2 {[%emt 0:05:28]} g5 {[%emt 0:05:42]} 13. Nd2 {[%emt 0:03:22]} f5 {[%emt 0:03:58]} 14. f4 {[%emt 0:02:32]} Bd7 {[%emt 0:05:13]} 15. c4 {[%emt 0:05:19]} e6 {[%emt 0:01:58]} 16. Nf3 {[%emt 0:13:39]} dxc4 {[%emt 0:08:35]} 17. Bxc4 {[%emt 0:00:10]} Nc7 {[%emt 0:00:25]} 1/2-1/2

[Event "1st 4NCL International Open"]
[Site "Telford"]
[Date "2018.11.04"]
[Round "8"]
[White "Ross, Stuart"]
[Black "Bennett, Dominic L"]
[Result "1/2-1/2"]
[ECO "B94"]
[WhiteElo "1612"]
[BlackElo "1924"]
[Annotator "NA"]
[PlyCount "50"]
[EventDate "2018.10.31"]
[EventType "swiss"]
[EventCountry "GBR"]
[SourceTitle "playchess.com"]
[Source "ChessBase"]
[SourceQuality "1"]
[TimeControl "5400+30"]

1. e4 {[%emt 0:00:00]} c5 {[%emt 0:03:31]} 2. Nf3 {[%emt 0:00:00]} d6 {[%emt 0:00:46]} 3. d4 {[%emt 0:00:00]} cxd4 {[%emt 0:00:07]} 4. Nxd4 {[%emt 0:00:12]} Nf6 {[%emt 0:00:11]} 5. Nc3 {[%emt 0:00:13]} a6 {[%emt 0:04:26]} 6. Bg5 {[%emt 0:00:27]} Nbd7 {[%emt 0:01:55]} 7. f4 {[%emt 0:03:35]} Qc7 {[%emt 0:02:25]} 8. Qf3 {[%emt 0:00:50]} h6 {[%emt 0:01:39]} 9. Bh4 {[%emt 0:01:43]} g5 {[%emt 0:03:35]} 10. fxg5 {[%emt 0:11:44]} hxg5 {[%emt 0:01:41]} 11. Bg3 {[%emt 0:03:31]} Ne5 {[%emt 0:17:00]} 12. Bxe5 {[%emt 0:04:28]} dxe5 {[%emt 0:00:29]} 13. Nf5 {[%emt 0:08:00]} Bh6 {[%emt 0:11:32]} 14. g4 {[%emt 0:07:41]} Be6 {[%emt 0:05:21]} 15. O-O-O {[%emt 0:04:51]} Rc8 {[%emt 0:02:20]} 16. Kb1 {[%emt 0:06:54]} Kf8 {[%emt 0:09:12]} 17. Bd3 {[%emt 0:03:03]} b5 {[%emt 0:08:15]} 18. Nd5 {[%emt 0:07:23]} Nxd5 {[%emt 0:07:36]} 19. exd5 {[%emt 0:01:20]} Bxf5 {[%emt 0:01:51]} 20. Bxf5 {[%emt 0:01:21]} Rd8 {[%emt 0:03:25]} 21. Be6 {[%emt 0:06:36]} Rh7 {[%emt 0:00:46]} 22. Rhf1 {[%emt 0:02:07]} Rd6 {[%emt 0:01:10]} 23. Qf5 {[%emt 0:01:05]} Rg7 {[%emt 0:03:26]} 24. Qxe5 {[%emt 0:04:48]} Kg8 {[%emt 0:02:58]} 25. Bf5 {[%emt 0:04:55]} Qd8 {[%emt 0:00:24]} 1/2-1/2

[Event "1st 4NCL International Open"]
[Site "Telford"]
[Date "2018.11.04"]
[Round "9"]
[White "Arkell, Keith C"]
[Black "Rahul Srivatshav P"]
[Result "1-0"]
[ECO "E63"]
[WhiteElo "2436"]
[BlackElo "2395"]
[Annotator "RC"]
[PlyCount "100"]
[EventDate "2018.10.31"]
[EventType "swiss"]
[EventCountry "GBR"]
[SourceTitle "playchess.com"]
[Source "ChessBase"]
[SourceQuality "1"]
[TimeControl "5400+30"]

1. d4 {[%emt 0:10:28]} Nf6 {[%emt 0:00:00]} 2. Nf3 {[%emt 0:00:03]} g6 {[%emt 0:00:00]} 3. c4 {[%emt 0:00:06]} Bg7 {[%emt 0:00:00]} 4. g3 {[%emt 0:00:04]} O-O {[%emt 0:00:00]} 5. Bg2 {[%emt 0:00:03]} d6 {[%emt 0:00:05]} 6. O-O {[%emt 0:00:04]} Nc6 {[%emt 0:00:18]} 7. Nc3 {[%emt 0:00:10]} a6 {[%emt 0:00:07]} 8. h3 {[%emt 0:01:11]} Bd7 {[%emt 0:00:30]} 9. e4 {[%emt 0:00:30]} e5 {[%emt 0:00:30]} 10. Be3 {[%emt 0:00:30]} Re8 {[%emt 0:00:30]} 11. d5 {[%emt 0:00:30]} Na5 {[%emt 0:00:30]} 12. Nd2 {[%emt 0:00:30]} b5 {[%emt 0:00:30]} 13. c5 {[%emt 0:00:30]} dxc5 {[%emt 0:00:30]} 14. Bxc5 {[%emt 0:00:30]} Nb7 {[%emt 0:00:30]} 15. Be3 {[%emt 0:00:30]} c6 {[%emt 0:00:30]} 16. a3 {[%emt 0:00:30]} Rc8 {[%emt 0:00:30]} 17. Qe2 {[%emt 0:00:30]} Nd6 {[%emt 0:00:30]} 18. dxc6 {[%emt 0:00:30]} Bxc6 {[%emt 0:00:30]} 19. Rfd1 {[%emt 0:00:30]} Qc7 {[%emt 0:00:30]} 20. Rac1 {[%emt 0:00:30]} Qb8 {[%emt 0:00:30]} 21. b4 {[%emt 0:00:30]} h6 {[%emt 0:00:30]} 22. Bc5 {[%emt 0:00:30]} Nb7 {[%emt 0:00:30]} 23. Nb3 {[%emt 0:00:30]} Nxc5 {[%emt 0:00:30]} 24. Nxc5 {[%emt 0:00:30]} Bf8 {[%emt 0:00:30]} 25. Nd5 {[%emt 0:00:30]} Bxd5 {[%emt 0:00:30]} 26. exd5 {[%emt 0:00:30]} Kg7 {[%emt 0:00:30]} 27. Nxa6 {[%emt 0:00:30]} Qb6 {[%emt 1:08:54]} 28. Rxc8 {[%emt 0:37:57]} Rxc8 {[%emt 0:00:16]} 29. Nc5 {[%emt 0:00:10]} Bxc5 {[%emt 0:03:44]} 30. bxc5 {[%emt 0:00:05]} Qxc5 {[%emt 0:00:04]} 31. Qxe5 {[%emt 0:00:16]} Ra8 {[%emt 0:00:30]} 32. Qb2 {[%emt 0:00:30]} Qxa3 {[%emt 0:00:30]} 33. Qxb5 {[%emt 0:00:30]} Rc8 {[%emt 0:00:30]} 34. d6 {[%emt 0:00:30]} Rc1 {[%emt 0:00:30]} 35. Qf1 {[%emt 0:00:30]} Rxd1 {[%emt 0:00:30]} 36. Qxd1 {[%emt 0:00:30]} Nd7 {[%emt 0:00:30]} 37. Qd4+ {[%emt 0:00:30]} Kg8 {[%emt 0:00:30]} 38. h4 {[%emt 0:00:30]} Qa5 {[%emt 0:00:30]} 39. Bf3 {[%emt 0:00:30]} Qc5 {[%emt 0:00:30]} 40. Qd2 {[%emt 0:00:30]} h5 {[%emt 0:00:30]} 41. Bd1 {[%emt 0:00:30]} Kh7 {[%emt 0:00:30]} 42. Qf4 {[%emt 0:00:30]} Qd5 {[%emt 0:00:30]} 43. Bf3 {[%emt 0:00:30]} Qe6 {[%emt 0:00:30]} 44. Qd4 {[%emt 0:00:30]} Kg8 {[%emt 0:00:30]} 45. Bd5 {[%emt 0:00:30]} Qg4 {[%emt 0:00:30]} 46. Qd2 {[%emt 0:00:30]} Ne5 {[%emt 0:00:30]} 47. Kg2 {[%emt 0:00:30]} Qd7 {[%emt 0:00:30]} 48. Qb4 {[%emt 0:00:30]} Qf5 {[%emt 0:00:30]} 49. Qd4 {[%emt 0:00:30]} Nd7 {[%emt 0:00:30]} 50. Bc6 {[%emt 0:00:30]} Ne5 {[%emt 0:00:30]} 1-0

[Event "1st 4NCL International Open"]
[Site "Telford"]
[Date "2018.11.04"]
[Round "9"]
[White "Guha, Chirag"]
[Black "Gibson, Christopher A"]
[Result "1-0"]
[ECO "E66"]
[WhiteElo "1887"]
[BlackElo "1924"]
[Annotator "NA"]
[PlyCount "23"]
[EventDate "2018.10.31"]
[EventType "swiss"]
[EventCountry "GBR"]
[SourceTitle "playchess.com"]
[Source "ChessBase"]
[SourceQuality "1"]
[TimeControl "5400+30"]

1. d4 {[%emt 0:02:03]} Nf6 {[%emt 0:00:00]} 2. c4 {[%emt 0:00:40]} g6 {[%emt 0:00:00]} 3. g3 {[%emt 0:00:02]} Bg7 {[%emt 0:00:00]} 4. Bg2 {[%emt 0:02:28]} O-O {[%emt 0:00:00]} 5. Nf3 {[%emt 0:00:03]} d6 {[%emt 0:00:04]} 6. O-O {[%emt 0:00:06]} Nc6 {[%emt 0:00:03]} 7. Nc3 {[%emt 0:00:07]} a6 {[%emt 0:00:07]} 8. d5 {[%emt 0:00:29]} Na5 {[%emt 0:00:15]} 9. Nd2 {[%emt 0:00:08]} c5 {[%emt 0:00:23]} 10. Qc2 {[%emt 0:00:15]} Rb8 {[%emt 0:01:00]} 11. b3 {[%emt 0:00:06]} b5 {[%emt 0:01:44]} 12. Bb2 {[%emt 0:00:28]} 1-0

[Event "1st 4NCL International Open"]
[Site "Telford"]
[Date "2018.11.04"]
[Round "9"]
[White "Jukes, Sam"]
[Black "Ross, Stuart"]
[Result "1-0"]
[ECO "B53"]
[WhiteElo "1863"]
[BlackElo "1608"]
[Annotator "NA RC"]
[PlyCount "79"]
[EventDate "2018.10.31"]
[EventType "swiss"]
[EventCountry "GBR"]
[SourceTitle "playchess.com"]
[Source "ChessBase"]
[SourceQuality "1"]
[TimeControl "5400+30"]

1. e4 {[%emt 0:00:00]} c5 {[%emt 0:00:00]} 2. Nf3 {[%emt 0:00:00]} d6 {[%emt 0:00:00]} 3. d4 {[%emt 0:00:00]} cxd4 {[%emt 0:00:00]} 4. Qxd4 {[%emt 0:00:16]} Nc6 {[%emt 0:00:30]} 5. Bb5 {[%emt 0:00:08]} Bd7 {[%emt 0:00:34]} 6. Bxc6 {[%emt 0:00:06]} Bxc6 {[%emt 0:00:44]} 7. Nc3 {[%emt 0:00:16]} Nf6 {[%emt 0:01:21]} 8. Bg5 {[%emt 0:00:36]} e6 {[%emt 0:04:16]} 9. O-O-O {[%emt 0:00:34]} Be7 {[%emt 0:00:39]} 10. Rhe1 {[%emt 0:00:35]} O-O {LiveBook: 723 Games} 11. Kb1 {[%emt 0:00:30]} d5 {B53: Sicilian: 2...d6: Lines with Qxd4} (11... h6 $11 12. Bh4 a6 (12... b5 13. Bxf6 Bxf6 14. Qxd6 Qb6 15. e5 Rfd8 16. Qb4 a5 17. Qf4 Be7 18. Ne4 Bxe4 19. Qxe4 Bc5 20. Rd3 Rxd3 21. cxd3 {½-½ (60) Zhigalko,S (2641)-Saric,I (2669) Riadh 2017})) 12. e5 {[%emt 0:00:30]} Ne8 $146 ({Predecessor:} 12... Nd7 13. h4 h6 14. Bxe7 Qxe7 15. Re3 Qc5 16. Qg4 Nb6 17. Nd4 Kh7 18. f4 Nc4 19. Rg3 {1-0 (48) Nguyen,V (2341)-Tran,L (2005) Ho Chi Minh City 2014}) 13. Qg4 {[%emt 0:00:30]} Bxg5 14. Nxg5 {[%emt 0:00:30]} h6 15. h4 {[%emt 0:00:30]} Qe7 16. Rh1 {[%emt 0:00:30]} g6 (16... Nc7 $11) 17. Qh3 {[%emt 0:00:30]} Kg7 18. f4 {[%emt 0:00:30]} Rh8 19. Nf3 {[%emt 0:00:30]} Nc7 (19... h5 $16) 20. g4 {[%emt 0:00:30]} Nb5 21. Nxb5 {[%emt 0:00:30]} Bxb5 22. f5 {[%emt 0:00:30]} exf5 23. gxf5 {[%emt 0:00:30]} gxf5 24. Rhg1+ {[%emt 0:00:30]} Kf8 25. Qxf5 {[%emt 0:00:30]} Bd7 26. Qf4 {[%emt 0:00:30]} Be6 27. Rg6 {[%emt 0:00:30]} Ke8 28. Rxh6 {[%emt 0:00:30]} Kd7 29. Rf6 {[%emt 0:00:30]} Raf8 30. Qa4+ {[%emt 0:00:30]} Kc7 31. Nd4 {[%emt 0:00:30]} (31. Qxa7 $18 {and White stays clearly on top.} Ra8 32. Qf2) 31... Bd7 $2 (31... Kb8 32. Rdf1 Bd7) 32. Qxa7 {[%emt 0:00:30]} Qxe5 $18 (32... Ra8 33. Nb5+ Bxb5 34. Qb6+ Kb8) 33. Rb6 {[%emt 0:00:30]} Rb8 34. Nb5+ {[%emt 0:00:30]} Bxb5 35. Rxb5 {[%emt 0:00:30]} Qe2 36. Rc5+ {[%emt 0:00:30]} Kd7 37. Rcxd5+ {[%emt 0:00:30]} Ke7 38. Qc5+ {[%emt 0:00:30]} Kf6 39. Rf5+ {[%emt 0:00:30]} Kg6 40. Rg1+ {[%emt 0:00:30]} 1-0

[Event "1st 4NCL International Open"]
[Site "Telford"]
[Date "2018.11.04"]
[Round "9"]
[White "Ther, Mate"]
[Black "Akeya-Price, Robert"]
[Result "1/2-1/2"]
[ECO "B13"]
[WhiteElo "1759"]
[BlackElo "1730"]
[Annotator "NA"]
[PlyCount "38"]
[EventDate "2018.10.31"]
[EventType "swiss"]
[EventCountry "GBR"]
[SourceTitle "playchess.com"]
[Source "ChessBase"]
[SourceQuality "1"]
[TimeControl "5400+30"]

1. e4 {[%emt 0:00:00]} c6 {[%emt 0:00:00]} 2. d4 {[%emt 0:00:00]} d5 {[%emt 0:00:00]} 3. exd5 {[%emt 0:00:00]} cxd5 {[%emt 0:00:00]} 4. Bd3 {[%emt 0:00:00]} Nc6 {[%emt 0:00:00]} 5. c3 {[%emt 0:00:00]} Qc7 {[%emt 0:00:04]} 6. Ne2 {[%emt 0:00:00]} Bg4 {[%emt 0:00:06]} 7. f3 {[%emt 0:00:26]} Bh5 {[%emt 0:00:09]} 8. Bf4 {[%emt 0:00:08]} Qd7 {[%emt 0:00:05]} 9. Nd2 {[%emt 0:00:35]} e6 {[%emt 0:00:17]} 10. Nb3 {[%emt 0:00:17]} Nf6 {[%emt 0:03:23]} 11. O-O {[%emt 0:01:01]} Bg6 {[%emt 0:00:54]} 12. Re1 {[%emt 0:02:30]} Bd6 {[%emt 0:01:54]} 13. Bg3 {[%emt 0:01:23]} O-O {[%emt 0:01:15]} 14. Nc5 {[%emt 0:04:02]} Bxc5 {[%emt 0:00:12]} 15. dxc5 {[%emt 0:00:06]} e5 16. Bxg6 {[%emt 0:00:30]} hxg6 17. Nc1 {[%emt 0:00:30]} Rfe8 18. Nd3 {[%emt 0:00:30]} e4 19. Nf4 {[%emt 0:00:30]} g5 1/2-1/2